Cogmind - Beta 15 @@@ ROGUE MODE // 2025.05.16 @ 14:39:00 Player: Cholfo Result: Destroyed by 57-D64(R) with Subdweller Beam Cannon Performance ------------- Evolutions (0) 0 Regions Visited (2) 400 Robots Destroyed (16) 80 Value Destroyed (261) 261 Prototype IDs (2) 40 Alien Tech Used (0) 0 Bonus (0) 0 TOTAL SCORE: 781 Bonus ------- None Cogmind --------- Core Integrity 0/250 Matter 294/300 Energy 100/100 System Corruption 0% Temperature Cool (9) Movement Core (850) Ox16 Location -10/Subcaves Parts ------- > --- POWER (1) -------- Subdweller Power Source > --- PROPULSION (2) --- (None) > --- UTILITY (2) ------ Disposable Heat Sink High-capacity Storage Unit > --- WEAPON (2) ------- Assault Rifle Makeshift Axe > --- INVENTORY (20) --- Scrap Shield Small Laser Subdweller Laser Subdweller Laser Barrage Gun Peak State ------------ > --- POWER ------------ Subdweller Power Source > --- PROPULSION ------- Light Treads > --- UTILITY ---------- High-capacity Storage Unit > --- WEAPON ----------- Riot Gun Makeshift Axe > --- INVENTORY -------- Scrap Shield Small Laser Subdweller Laser Assault Rifle Barrage Gun [Rating: 12] Favorites ----------- Power Subdweller Power Source Engine Subdweller Power Source Propulsion Wheel Treads Light Treads Wheel Wheel Utility High-capacity Storage Unit Device Disposable Heat Sink Storage High-capacity Storage Unit Weapon Makeshift Axe Energy Gun Small Laser Ballistic Gun Assault Rifle Impact Weapon Hammer Slashing Weapon Makeshift Axe Build | -11 -10 -10 ------- Run | Yrd Mat Sub Slots Evolved . | . . . Power . | . . . Propulsion . | . . . Utility . | . . . Weapon . | . . . Parts Attached 21 | 10 2 9 Power 3 | 1 . 2 Engine 3 | 1 . 2 Core . | . . . Reactor . | . . . Propulsion 7 | 4 . 3 Treads 2 | . . 2 Leg . | . . . Wheel 5 | 4 . 1 Hover . | . . . Flight . | . . . Utility 5 | 3 1 1 Device 3 | 2 . 1 Storage 2 | 1 1 . Processor . | . . . Hackware . | . . . Protection . | . . . Artifact . | . . . Weapon 6 | 2 1 3 Energy Gun 3 | 2 . 1 Energy Cannon . | . . . Ballistic Gun 1 | . . 1 Ballistic Cannon . | . . . Launcher . | . . . Special Weapon . | . . . Impact Weapon 1 | . 1 . Slashing Weapon 1 | . . 1 Piercing Weapon . | . . . Special Melee Weapon . | . . . Unidentified Prototypes . | . . . Parts Lost 12 | . . 12 Power 2 | . . 2 Propulsion 6 | . . 6 Utility 2 | . . 2 Weapon 2 | . . 2 Highest Loss Streak 10 | . . 10 To Critical Strikes . | . . . Average Backups 5 | 4 8 5 Power . | . 1 . Propulsion 1 | 2 4 . Utility . | . 1 1 Weapon 3 | . 1 3 Tool/Special . | . . . Unused Backups 5 | . 1 4 Power . | . . . Propulsion 1 | . 1 . Utility 1 | . . 1 Weapon 3 | . . 3 Tool/Special . | . . . Average Slot Usage (%) 74 | . 100 70 Engine 13 | . 14 13 Treads 3 | . . 4 Wheel 5 | . 28 2 Device 10 | . 14 9 Storage 14 | . 14 14 Energy Gun 6 | . 23 3 Ballistic Gun 7 | . . 8 Impact Weapon 2 | . 4 1 Slashing Weapon 10 | . . 12 Peak Build Rating 12 | 9 8 12 Average Rating 9 | 7 8 10 On Entrance 5 | . 8 8 Naked Turns . | . . . Heaviest Build 51 | 13 49 51 Greatest Support 40 | 26 20 40 Greatest Overweight (x) 16 | . 2 16 Average Overweight (x) 3 | . . 7 Largest Inventory Capacity 20 | 8 20 20 Average Capacity 17 | 7 12 20 Most Carried 10 | 8 8 10 Average Carried 6 | 4 8 6 Final Capacity 20 | 8 20 20 Final Carried 8 | 8 8 6 Class Distribution -------------------- 100% | Mutant Dominant Class ---------------- Mutant | -10/Materials Mutant | -10/Subcaves Resources | -11 -10 -10 ----------- Run | Yrd Mat Sub Matter Collected 410 | 300 . 110 Remotely . | . . . Salvage Created 399 | 160 92 147 Parts 31 | 14 11 6 Haulers Intercepted . | . . . Recyclers Shooed . | . . . Parts Field Recycled . | . . . Retrieved Matter . | . . . Parts Self-Destructed . | . . . Prevented . | . . . Kills | -11 -10 -10 ------- Run | Yrd Mat Sub Combat Hostiles Destroyed 10 | . 6 4 Melee 2 | . . 2 Guns 7 | . 6 1 Classes Destroyed 4 | 2 1 1 Tunneler 5 | 5 . . Recycler 1 | 1 . . Swarmer 6 | . 6 . Subdweller 4 | . . 4 Best Kill Streak 6 | 3 6 1 Combat Bots Only 6 | . 6 1 Max Kills in Single Turn 2 | 1 2 1 Gunslinging 1 | . 1 . Exploded . | . . . Melee 1 | . . 1 Uniques/NPCs Destroyed . | . . . Combat | -11 -10 -10 -------- Run | Yrd Mat Sub Hostile Shots Fired 97 | . 18 79 Missed 27 | . 3 24 Hits 70 | . 15 55 Projectile 70 | . 15 55 Critical Strikes 2 | . . 2 Damage Taken 1337 | . 135 1202 Core 275 | . 19 256 Absorbed by Shields . | . . . Core Remaining (%) 100 | 100 . . Volleys Fired 31 | 12 9 10 Largest 2 | 2 2 1 Hottest 80 | 80 80 50 Shots Fired 52 | 24 18 10 Gun 52 | 24 18 10 Cannon . | . . . Launcher . | . . . Special . | . . . Kinetic 9 | . . 9 Thermal 42 | 24 18 . Explosive . | . . . Electromagnetic 1 | . . 1 Robot Hit Streak 6 | 4 5 6 Robot Miss Streak 7 | 7 2 1 Penetration Max . | . . . Secondary Targets 3 | . 3 . Max Gunslinging Chain 1 | . 1 . Shots Hit Robots 52 | 11 10 31 Core Hits 19 | 7 6 6 Critical Kills 1 | . . 1 Critical Parts Destroyed 2 | . . 2 Critical Strikes 3 | . . 3 Smash 3 | . . 3 Melee Attacks 37 | . 9 28 Impact 31 | . 9 22 Slashing 6 | . . 6 Piercing . | . . . Sneak Attacks . | . . . Combat Hostiles . | . . . Follow-up Attacks . | . . . Damage Inflicted 921 | 123 121 677 Guns 343 | 123 121 99 Cannons . | . . . Explosions . | . . . Melee 578 | . . 578 Ramming . | . . . Kinetic 82 | . . 82 Thermal 244 | 123 121 . Explosive . | . . . Electromagnetic 17 | . . 17 Impact 395 | . . 395 Slashing 183 | . . 183 Piercing . | . . . Highest Corruption . | . . . Average Corruption . | . . . Corruption Purged . | . . . Corruption Blocked . | . . . Overload Shots . | . . . Overflow Damage 58 | . . 58 Projectiles . | . . . Explosions . | . . . Melee 58 | . . 58 Knockbacks 5 | . . 5 Impact 5 | . . 5 Kinetic . | . . . Secondary . | . . . Self-Inflicted Damage . | . . . Shots . | . . . Rammed . | . . . Targets Rammed . | . . . Kicked . | . . . Crushed . | . . . Highest Temperature 90 | 54 90 . Average Temperature 28 | 21 37 . Received Heat Transfer 279 | . . 279 Siege Activations . | . . . Martial Activations . | . . . Shielding Activations . | . . . Robots Disrupted . | . . . Combat Hostiles . | . . . Robots Corrupted 1 | . . 1 Combat Hostiles 1 | . . 1 Parts Fried 1 | . . 1 Impact Corruptions 4 | . . 4 Robots Melted . | . . . Combat Hostiles . | . . . Parts Melted . | . . . Heat Transferred 550 | 275 275 . Parts Sabotaged . | . . . Parts Stolen . | . . . Parts Stripped . | . . . Power Chain Reactions . | . . . Alert | -11 -10 -10 ------- Run | Yrd Mat Sub Maximum Alert Level . | . . . Low Security (%) 100 | 100 100 . Level 1 . | . . . Level 2 . | . . . Level 3 . | . . . Level 4 . | . . . Level 5 . | . . . High Security . | . . . Max Security . | . . . Peak Influence 133 | 10 133 . Initial . | . . . Average 45 | 1 74 . Influence Increases 190 | 30 160 . Destroy 0b10 Robot/C 120 | . 120 . Destroy 0b10 Robot/NC 30 | 30 . . Destroy Leader 20 | . 20 . Successful Hack 18 | . 18 . Destroy Structure 2 | . 2 . Influence Decreases 190 | 30 105 55 Entered New Map 27 | . . 27 Time Decay 163 | 30 105 28 Squads Dispatched 1 | . 1 . Investigation . | . . . Extermination . | . . . Reinforcement 1 | . 1 . Assault . | . . . Garrison . | . . . Intercept . | . . . Searches Triggered . | . . . Construction Impeded . | . . . Haulers Reinforced . | . . . Active Scanning Responses . | . . . Cargo Convoy Interrupts . | . . . Stealth | -11 -10 -10 --------- Run | Yrd Mat Sub Distress Signals 1 | . 1 . Communications Jammed . | . . . Distress Signals . | . . . Times Spotted 22 | . 11 11 Peak Tracking Total 5 | . 5 3 Tactical Retreats 6 | . . 6 Traps | -11 -10 -10 ------- Run | Yrd Mat Sub Traps Triggered 2 | . 1 1 Indirectly . | . . . Trap Hack Attempts . | . . . Triggered . | . . . Disarmed . | . . . Reprogrammed . | . . . Reused . | . . . Traps Extracted . | . . . Installed . | . . . Triggered . | . . . Machines | -11 -10 -10 ---------- Run | Yrd Mat Sub Machines Disabled . | . . . Max in Single Turn . | . . . Machines Repaired . | . . . Machines Dismantled . | . . . Machines Sabotaged . | . . . Overloaded Fab Kills . | . . . Hacking | -11 -10 -10 --------- Run | Yrd Mat Sub Machines Accessed 5 | . 5 . Terminals 5 | . 5 . Fabricators . | . . . Repair Stations . | . . . Recycling Units . | . . . Scanalyzers . | . . . Garrison Access . | . . . Total Hacks 19 | . 19 . Successful 8 | . 8 . Failed 11 | . 11 . Catastrophic 1 | . 1 . Database Lockouts . | . . . Manual 13 | . 13 . Terminals 19 | . 19 . Fabricators . | . . . Repair Stations . | . . . Recycling Units . | . . . Scanalyzers . | . . . Garrison Access . | . . . Terminal Hacks 3 | . 3 . Prototype ID Bank 1 | . 1 . Locate Traps 1 | . 1 . Zone Layout 1 | . 1 . Fabricator Hacks . | . . . Repair Station Hacks . | . . . Recycling Unit Hacks . | . . . Scanalyzer . | . . . Garrison Access Hacks . | . . . Unauthorized Hacks 5 | . 5 . Terminals 5 | . 5 . Botnet 5 | . 5 . Fabricators . | . . . Repair Stations . | . . . Recycling Units . | . . . Scanalyzers . | . . . Garrison Access . | . . . Data Cores Recovered . | . . . Used . | . . . Hacking Detections 5 | . 5 . Full Trace Events 1 | . 1 . Feedback Events . | . . . Feedback Blocked . | . . . Robot Schematics Acquired . | . . . Robots Built . | . . . Authchips . | . . . Time . | . . . Total Robot Build Rating . | . . . Part Schematics Acquired . | . . . Parts Built . | . . . Authchips . | . . . Time . | . . . Total Part Build Rating . | . . . Parts Repaired . | . . . Time . | . . . Parts Recycled . | . . . Recycled Matter . | . . . Retrieved Matter . | . . . Retrieved Components . | . . . Parts Scanalyzed . | . . . Part Schematics Acquired . | . . . Parts Damaged . | . . . Bothacking | -11 -10 -10 ------------ Run | Yrd Mat Sub Used RIF Installer . | . . . Robots Hacked . | . . . Non-combat . | . . . Combat . | . . . Robot Hacks Applied . | . . . Relay Couplers Released . | . . . Fabnet Peak Effective % . | . . . Robots Rewired . | . . . Allies Hacked . | . . . Hacks Repelled . | . . . Allies | -11 -10 -10 -------- Run | Yrd Mat Sub Total Allies . | . . . Largest Group . | . . . Highest-Rated Group . | . . . Highest-Rated Ally . | . . . Total Orders . | . . . Ally Attacks . | . . . Total Damage . | . . . Kills . | . . . Allies Corrupted . | . . . Allies Melted . | . . . Intel | -11 -10 -10 ------- Run | Yrd Mat Sub Active Infowar (turns) 444 | 79 250 115 Terrain 82 | 63 . 19 Seismic 362 | 16 250 96 Robot Analysis Total . | . . . Derelict Logs Recovered . | . . . Drone Launches . | . . . Drone Recoveries . | . . . Exploration | -11 -10 -10 ------------- Run | Yrd Mat Sub Turns Passed 1885 | 163 250 1472 Spaces Moved 613 | 123 208 282 Core 110 | 1 . 109 Treads 104 | . . 104 Legs . | . . . Wheels 399 | 122 208 69 Hover . | . . . Flight . | . . . Fastest Speed 50 | 50 80 110 Average Speed 263 | 84 87 471 Slowest Speed 850 | 90 110 850 Overloaded Moves . | . . . Propulsion Burnouts . | . . . Robots Hopped . | . . . Potential Cave-ins . | . . . Cave-ins Triggered . | . . . Exploration Rate (%) 26 | 4 46 30 Regions Visited 2 Branch Regions 1 Pre-discovered Areas 1 | . . 1 Known Exits Taken . | . . . Unknown Exits Taken 2 | 1 1 . Scrap Searched 9 | . . 9 Spaces Dug 2 | . 2 . Terrain Destroyed 2 | . 2 . Melee 2 | . 2 . Projectile . | . . . AOE . | . . . Terrain Rammed . | . . . Walls Destroyed . | . . . Machines Disabled . | . . . Actions | -11 -10 -10 --------- Run | Yrd Mat Sub Total 768 | 153 242 373 Wait 46 | . 12 34 Move 611 | 122 207 282 Hop . | . . . Pick Up 15 | 8 1 6 Fast Attach 9 | 7 . 2 Attach 8 | . . 8 Detach . | . . . Swap 7 | 3 2 2 Drop 4 | 1 2 1 Fire 31 | 12 9 10 Melee 37 | . 9 28 Ram . | . . . Kick . | . . . Crush . | . . . Escape Stasis . | . . . Rewire . | . . . Trap . | . . . Miscellaneous . | . . . Route ------- -11/Scrapyard -10/Materials (discovered 2 exits: [*Mat] / [*Sub]) -10/Subcaves History --------- Turn | Location | Event 19 | -11/Scrapyard | Discovered new exit (range 16) 164 | -11/Scrapyard | Entered Materials 307 | -10/Materials | Build established: Mutant 355 | -10/Materials | Discovered new exit (range 4) 401 | -10/Materials | Discovered new exit (range 3) 414 | -10/Materials | Entered Subcaves 440 | -10/Subcaves | Shifting Twisted Machinery released Scrap Shield 482 | -10/Subcaves | Disturbed a concealed Subdweller 566 | -10/Subcaves | Core integrity fell below 50% 592 | -10/Subcaves | Lost 10 parts (2p5n2u1w) 909 | -10/Subcaves | Ambushed by Subdwellers from Twisted Machinery 947 | -10/Subcaves | Core integrity fell below 20% 949 | -10/Subcaves | Learned location of Zion (-6) 949 | -10/Subcaves | Met a Zionite searching for "candidates" 1886 | -10/Subcaves | Destroyed by 57-D64(R) with Subdweller Beam Cannon Last Messages --------------- 00958_ Acquired 26 matter. 00984_ Acquired Disposable Heat Sink. 00987_ Subatomizers dissect the Sub. Power Source. 00994_ Acquired 10 matter. 00998_ Subatomizers dissect the Sub. Power Source. 01019_ Acquired Sub. Laser. 01025_ Subatomizers dissect the Sub. Power Source. 01110_ CB-7LW(u) tweaks Twisted Machinery. 01596_ CB-7LW(u) deconstructs Twisted Machinery. 01846_ 6I-H9M(z) destroyed. 01850_ SY-9GF(z) destroyed. 01853_ CB-7LW(u) cries out in pain. 01853_ CB-7LW(u) destroyed. 01859_ Subatomizers dissect the Wheel. 01873_ Subatomizers dissect the Lgt. Ion Engine. Map ----- +----------------------------------------------------+ | ?????????????# #??##"""##??????# """ | | ?????????????# #???#"" #???????""""" | | ?????????????# #????"" #??????? ""? ### | | ?????????????## #????? ##??????? "#?? ##?? | | ??????????????#### #?????#?##??????"?????????? | | ????????????????## #?????## "???????????????? | | ????????????????# #????## ????????????????? | | ????????????????## ##?#### #?????????????????? | | ?????????????????# ##### "" ##??????????""""??? | | ?????????????????# # "" #??????????""""??? | | ?????????????????# !% "" "##?????????# ??? | | ?????????????????# %* """"" ##????????# #??? | | ?????????????###### # ###?????##""#??? | | ????????????## ##### ### ##???## ""#??? | | ????????????# #??# ##?### "##??# #??? | | ????????????# #??# ###?## #### ##??? | | ????????????? #?## ##?# ####### #### | | ?????????????# #?# ### ###?## # | | ?????????????# ### ### ### | | ?????????????# ## #### | | ?????????????# ##?# ### | | ?????????????# % ### ### ## #?## | | ?????????????### %##??# ## ## #?#### | | ???????????????### ##??# # #????? | | ????????????????## #### R ## #????? | | ?????????????#### @ ### ######????? | | ????????????## ###?## "#?????????? | | ????????????# *% #??# " "#????????? | | ????????????# ## = "#??#" #????????? | | ????????????### ### "#??### "#????????? | | ??????????????### ### ###?????" ????????? | | ????????????????## ""#??????? "???????? | | ??????????????#### ## #??????? """#??????? | | ?????????????## #?#######???????""" #??????? | | ?????????????# ##?????????????????????????? | | ?????????????# ##????????????????????????? | | ?????????????## #????????????????????????? | | ??????????????# ## ##????????????????????????? | | ??????????????# ## #?????????????????????????? | | ?????????????## ######?????????????????????????? | | ?????????????# ##??????????????????????????????? | | ?????????????# #???????????????????????????????? | | ????????????## ##???????????????????????????????? | | ????????????# #????????????????????????????????? | | ????????????## ##????????????????????????????????? | | ?????????????###?????????????????????????????????? | | ?????????????????????????????????????????????????? | | ?????????????????????????????????????????????????? | | ?????????????????????????????????????????????????? | | ?????????????????????????????????????????????????? | +----------------------------------------------------+ Best States ------------- Heat Dissipation 25 Coolant Potential 50 Energy Generation 15 Energy Capacity 250 Matter Stores 300 Matter Capacity 300 Sight Range 16 Terrain Scan Range 16 Terrain Scan Density 10 Evasion (%) 44 Recoil Reduction 2 Item Schematics ----------------- None Robot Schematics ------------------ None Fabricated ------------ Nothing Repaired ---------- Nothing Alien Tech Used ----------------- None Achievements -------------- None Challenges ------------ None Game ------ Seed AluminumTacticalDeflector Manual? 0 Play Time 00:08:59 Cumulative 15.1 hours Start 2025.05.16 @ 14:30:14 End 2025.05.16 @ 14:39:00 Sessions 1 Manual Loads 0 Difficulty Rogue Special Mode None Game No. 19 Rogue 19 Adventurer 0 Explorer 0 Win Type - Total 0 Types 0/0/0/0/0/0/0/0/0/0 Lore% 21 Gallery% 21 Achievement% 19 Wizard Run 0 Options --------- Layout 1 ASCII 1 Keyboard 1 Movement Vi Keybinds 0 Fullscreen 2 Font 32/SmallcapsGlow Map View 50x35 Zoom Use 0% Tactical HUD 1 Map Filters NONE Filters NONE Steam 1 RUN: a5fb1f45-dd23-4ae6-b4a6-ad8fea9719a7